Cogmind - Beta 13 @@@ ROGUE MODE // 2024.04.06 @ 05:54:21 Player: A Moose Result: Destroyed by as-24432 with Assembled Blade Performance ------------- Evolutions (1) 500 Regions Visited (4) 800 Robots Destroyed (59) 295 Value Destroyed (1307) 1307 Prototype IDs (0) 0 Alien Tech Used (0) 0 Bonus (36) 36 TOTAL SCORE: 2938 Bonus ------- High Alert Combat Kills 36 Cogmind --------- Core Integrity 0/400 Matter 289/300 Energy 100/100 System Corruption 0% Temperature Cool (0) Movement Rolling (80) Location -9/Mines Parts ------- > --- POWER (1) -------- (None) > --- PROPULSION (3) --- Wheel Wheel > --- UTILITY (3) ------ Signal Interpreter Hardened Light Armor Plating Hacking Suite > --- WEAPON (2) ------- Light Assault Rifle Light Assault Rifle > --- INVENTORY (5) ---- Light Ion Engine Improved Heat Sink Large Matter Pod (150) Hardened Light Armor Plating Light Assault Rifle Peak State ------------ > --- POWER ------------ Ion Engine > --- PROPULSION ------- Improved Aluminum Leg > --- UTILITY ---------- Small Storage Unit Signal Interpreter Hacking Suite > --- WEAPON ----------- Rocket Launcher Makeshift Axe > --- INVENTORY -------- Light Ion Engine Improved Heat Sink Large Matter Pod Improved Terrain Scanner Light Assault Rifle Mining Laser Katana [Rating: 15] Favorites ----------- Power Ion Engine Engine Ion Engine Propulsion Light Treads Treads Light Treads Leg Improved Aluminum Leg Wheel Wheel Utility Small Storage Unit Device Improved Terrain Scanner Storage Small Storage Unit Processor Signal Interpreter Hackware Hacking Suite Protection Hardened Light Armor Plating Weapon Assault Rifle Energy Gun EM Pulse Gun Ballistic Gun Assault Rifle Launcher Rocket Launcher Special Weapon Plasma Cutter Slashing Weapon Makeshift Axe Build | -11 -10 -10 -9 -9 ------- Run | Yrd Mat Min Mat Min Slots Evolved 2 | . . . 2 . Power . | . . . . . Propulsion 1 | . . . 1 . Utility 1 | . . . 1 . Weapon . | . . . . . Parts Attached 33 | 6 1 4 15 7 Power 6 | 1 . 1 2 2 Engine 6 | 1 . 1 2 2 Core . | . . . . . Reactor . | . . . . . Propulsion 11 | 2 . . 7 2 Treads 2 | 2 . . . . Leg 1 | . . . 1 . Wheel 8 | . . . 6 2 Hover . | . . . . . Flight . | . . . . . Utility 6 | 1 1 1 2 1 Device 2 | . 1 . 1 . Storage 1 | 1 . . . . Processor 1 | . . 1 . . Hackware 1 | . . . 1 . Protection 1 | . . . . 1 Artifact . | . . . . . Weapon 10 | 2 . 2 4 2 Energy Gun 1 | 1 . . . . Energy Cannon . | . . . . . Ballistic Gun 4 | 1 . . 1 2 Ballistic Cannon . | . . . . . Launcher 2 | . . 1 1 . Special Weapon 1 | . . . 1 . Impact Weapon . | . . . . . Slashing Weapon 2 | . . 1 1 . Piercing Weapon . | . . . . . Special Melee Weapon . | . . . . . Unidentified Prototypes . | . . . . . Parts Lost 20 | . 1 3 8 8 Power 5 | . . 1 2 2 Propulsion 8 | . . 1 4 3 Utility 2 | . . . 1 1 Weapon 5 | . 1 1 1 2 Highest Loss Streak 5 | . 1 1 5 5 To Critical Strikes . | . . . . . Average Slot Usage (%) 78 | . 79 78 70 87 Engine 12 | . 14 13 9 10 Treads 15 | . 28 18 7 . Wheel 4 | . . . 5 23 Device 6 | . 6 14 . . Storage 11 | . 14 14 11 . Processor 4 | . . . 11 11 Hackware 2 | . . . 3 11 Protection 1 | . . . . 10 Ballistic Gun 10 | . 14 9 2 16 Launcher 2 | . . 6 2 . Special Weapon 1 | . . . 4 . Slashing Weapon 4 | . . 2 11 3 Naked Turns . | . . . . . Heaviest Build 18 | 14 14 18 17 12 Greatest Support 40 | 40 40 40 30 30 Greatest Overweight (x) 4 | . . . 4 1 Average Overweight (x) . | . . . . . Largest Inventory Capacity 8 | 8 8 8 8 8 Average Capacity 7 | 6 8 8 8 5 Most Carried 8 | 4 6 8 8 8 Average Carried 5 | 1 3 6 7 4 Final Capacity 8 | 8 8 8 8 5 Final Carried 8 | 1 6 7 8 5 Class Distribution -------------------- 80% | Mutant 19% | Scavenger-Mutant Dominant Class ---------------- Mutant | -10/Materials Mutant | -10/Mines Mutant | -9/Materials Scavenger-Mutant | -9/Mines Resources | -11 -10 -10 -9 -9 ----------- Run | Yrd Mat Min Mat Min Matter Collected 1079 | 223 341 108 208 199 Remotely . | . . . . . Salvage Created 1560 | . 480 242 547 291 Parts 119 | . 39 16 35 29 Haulers Intercepted . | . . . . . Recyclers Shooed 3 | . 2 . 1 . Parts Field Recycled . | . . . . . Retrieved Matter . | . . . . . Parts Self-Destructed . | . . . . . Prevented . | . . . . . Kills | -11 -10 -10 -9 -9 ------- Run | Yrd Mat Min Mat Min Combat Hostiles Destroyed 42 | . 9 9 11 13 Melee 11 | . . . 5 6 Guns 20 | . 7 6 . 7 AOE 11 | . 2 3 6 . Classes Destroyed 11 | . 7 . 3 1 Worker 2 | . 1 1 . . Builder 6 | . 1 . 5 . Tunneler 2 | . 1 . . 1 Recycler 4 | . 1 1 1 1 Mechanic 1 | . . . 1 . Operator 1 | . . . 1 . Watcher 2 | . 2 . . . Swarmer 18 | . 3 3 . 12 Grunt 22 | . 6 6 10 . Duelist 1 | . . . 1 . Assembled 1 | . . . . 1 Best Kill Streak 10 | . 9 3 10 6 Combat Bots Only 6 | . 6 3 5 5 Max Kills in Single Turn 4 | . 2 2 4 2 Gunslinging 1 | . . . . 1 Exploded 2 | . 1 1 2 . Melee 1 | . . . 1 1 Uniques/NPCs Destroyed . | . . . . . Combat | -11 -10 -10 -9 -9 -------- Run | Yrd Mat Min Mat Min Hostile Shots Fired 233 | . 64 29 64 76 Missed 69 | . 21 13 17 18 Damage Taken 2054 | . 513 233 697 611 Core 610 | . 136 49 211 214 Absorbed by Shields . | . . . . . Core Remaining (%) 63 | 100 . 26 . . Volleys Fired 102 | . 48 22 14 18 Largest 2 | . 2 2 1 2 Hottest 60 | . 60 53 33 40 Shots Fired 137 | . 58 31 14 34 Gun 112 | . 58 20 . 34 Cannon . | . . . . . Launcher 24 | . . 11 13 . Special 1 | . . . 1 . Kinetic 102 | . 48 20 . 34 Thermal 1 | . . . 1 . Explosive 24 | . . 11 13 . Electromagnetic 10 | . 10 . . . Robot Hit Streak 8 | . 8 8 3 8 Robot Miss Streak 5 | . 5 4 2 4 Penetration Max . | . . . . . Secondary Targets 1 | . . . . 1 Max Gunslinging Chain 1 | . . . . 1 Shots Hit Robots 111 | . 33 20 27 31 Core Hits 86 | . 23 20 25 18 Critical Kills 1 | . . . . 1 Critical Parts Destroyed 1 | . . 1 . . Critical Strikes 4 | . . 1 2 1 Destroy 2 | . . 1 . 1 Sever 2 | . . . 2 . Melee Attacks 49 | . . . 26 23 Impact . | . . . . . Slashing 49 | . . . 26 23 Piercing . | . . . . . Sneak Attacks 2 | . . . 2 . Combat Hostiles . | . . . . . Follow-up Attacks 2 | . . . 2 . Damage Inflicted 3647 | . 641 768 1746 492 Guns 839 | . 446 206 . 187 Cannons . | . . . . . Explosions 1786 | . 195 551 1040 . Melee 993 | . . . 695 298 Ramming 18 | . . 11 . 7 Kinetic 746 | . 353 206 . 187 Thermal 206 | . 195 . 11 . Explosive 1591 | . . 551 1040 . Electromagnetic 93 | . 93 . . . Impact . | . . . . . Slashing 993 | . . . 695 298 Piercing . | . . . . . Highest Corruption . | . . . . . Average Corruption . | . . . . . Corruption Purged . | . . . . . Corruption Blocked . | . . . . . Overload Shots . | . . . . . Overflow Damage 146 | . 4 1 101 40 Projectiles . | . . . . . Explosions 36 | . 4 1 31 . Melee 110 | . . . 70 40 Knockbacks . | . . . . . Impact . | . . . . . Kinetic . | . . . . . Secondary . | . . . . . Self-Inflicted Damage 87 | . . 45 39 3 Shots 2 | . . 1 1 . Rammed 4 | . . 2 . 2 Targets Rammed 4 | . . 2 . 2 Kicked . | . . . . . Crushed . | . . . . . Highest Temperature 99 | . 99 9 8 8 Average Temperature 30 | . 66 2 7 4 Received Heat Transfer 606 | . 264 93 249 . Siege Activations . | . . . . . Robots Corrupted . | . . . . . Combat Hostiles . | . . . . . Parts Fried . | . . . . . Impact Corruptions . | . . . . . Robots Melted . | . . . . . Combat Hostiles . | . . . . . Parts Melted . | . . . . . Heat Transferred 287 | . 250 . 37 . Parts Sabotaged . | . . . . . Parts Stolen . | . . . . . Parts Stripped . | . . . . . Power Chain Reactions 2 | . 2 . . . Alert | -11 -10 -10 -9 -9 ------- Run | Yrd Mat Min Mat Min Peak Influence 546 | . 359 262 546 437 Initial 212 | . . 61 68 212 Average 199 | . 218 122 222 363 Maximum Alert Level 2 | . 1 1 2 2 Low Security (%) 59 | 100 38 98 54 . Level 1 28 | . 61 1 19 55 Level 2 12 | . . . 26 44 Level 3 . | . . . . . Level 4 . | . . . . . Level 5 . | . . . . . High Security . | . . . . . Max Security . | . . . . . Squads Dispatched 6 | . 3 . 3 . Investigation 1 | . . . 1 . Extermination . | . . . . . Reinforcement 5 | . 3 . 2 . Assault . | . . . . . Garrison . | . . . . . Intercept . | . . . . . Searches Triggered . | . . . . . Construction Impeded 1 | . . . 1 . Haulers Reinforced . | . . . . . Active Scanning Responses . | . . . . . Cargo Convoy Interrupts . | . . . . . Stealth | -11 -10 -10 -9 -9 --------- Run | Yrd Mat Min Mat Min Distress Signals 1 | . . . 1 . Communications Jammed . | . . . . . Distress Signals . | . . . . . Times Spotted 67 | . 19 9 17 22 Peak Tracking Total 10 | . 5 3 5 10 Tactical Retreats 3 | . 2 . 1 . Traps | -11 -10 -10 -9 -9 ------- Run | Yrd Mat Min Mat Min Traps Triggered . | . . . . . Indirectly . | . . . . . Trap Hack Attempts . | . . . . . Triggered . | . . . . . Disarmed . | . . . . . Reprogrammed . | . . . . . Reused . | . . . . . Traps Extracted . | . . . . . Installed . | . . . . . Triggered . | . . . . . Machines | -11 -10 -10 -9 -9 ---------- Run | Yrd Mat Min Mat Min Machines Disabled 11 | . 2 3 6 . Max in Single Turn 3 | . 1 1 3 . Machines Repaired . | . . . . . Machines Dismantled 2 | . . . 2 . Machines Sabotaged . | . . . . . Overloaded Fab Kills . | . . . . . Hacking | -11 -10 -10 -9 -9 --------- Run | Yrd Mat Min Mat Min Machines Accessed 3 | . 2 . 1 . Terminals 3 | . 2 . 1 . Fabricators . | . . . . . Repair Stations . | . . . . . Recycling Units . | . . . . . Scanalyzers . | . . . . . Garrison Access . | . . . . . Total Hacks 10 | . 6 . 4 . Successful 7 | . 3 . 4 . Failed 3 | . 3 . . . Catastrophic . | . . . . . Database Lockouts . | . . . . . Manual . | . . . . . Terminals 10 | . 6 . 4 . Fabricators . | . . . . . Repair Stations . | . . . . . Recycling Units . | . . . . . Scanalyzers . | . . . . . Garrison Access . | . . . . . Terminal Hacks 7 | . 3 . 4 . Emergency Access Points 1 | . 1 . . . Alert Level 1 | . . . 1 . Locate Traps 2 | . 1 . 1 . Hauler Manifests 1 | . . . 1 . Zone Layout 2 | . 1 . 1 . Fabricator Hacks . | . . . . . Repair Station Hacks . | . . . . . Recycling Unit Hacks . | . . . . . Scanalyzer . | . . . . . Garrison Access Hacks . | . . . . . Unauthorized Hacks . | . . . . . Terminals . | . . . . . Fabricators . | . . . . . Repair Stations . | . . . . . Recycling Units . | . . . . . Scanalyzers . | . . . . . Garrison Access . | . . . . . Data Cores Recovered . | . . . . . Used . | . . . . . Hacking Detections 3 | . 2 . 1 . Full Trace Events 2 | . 1 . 1 . Feedback Events . | . . . . . Feedback Blocked . | . . . . . Robot Schematics Acquired . | . . . . . Robots Built . | . . . . . Authchips . | . . . . . Time . | . . . . . Total Robot Build Rating . | . . . . . Part Schematics Acquired . | . . . . . Parts Built . | . . . . . Authchips . | . . . . . Time . | . . . . . Total Part Build Rating . | . . . . . Parts Repaired . | . . . . . Time . | . . . . . Parts Recycled . | . . . . . Recycled Matter . | . . . . . Retrieved Matter . | . . . . . Retrieved Components . | . . . . . Parts Scanalyzed . | . . . . . Part Schematics Acquired . | . . . . . Parts Damaged . | . . . . . Bothacking | -11 -10 -10 -9 -9 ------------ Run | Yrd Mat Min Mat Min Used RIF Installer . | . . . . . Robots Hacked . | . . . . . Non-combat . | . . . . . Combat . | . . . . . Robot Hacks Applied . | . . . . . Relay Couplers Released . | . . . . . Fabnet Peak Effective % . | . . . . . Robots Rewired . | . . . . . Allies Hacked . | . . . . . Hacks Repelled . | . . . . . Allies | -11 -10 -10 -9 -9 -------- Run | Yrd Mat Min Mat Min Total Allies . | . . . . . Largest Group . | . . . . . Highest-Rated Group . | . . . . . Highest-Rated Ally . | . . . . . Total Orders . | . . . . . Ally Attacks . | . . . . . Total Damage . | . . . . . Kills . | . . . . . Allies Corrupted . | . . . . . Allies Melted . | . . . . . Intel | -11 -10 -10 -9 -9 ------- Run | Yrd Mat Min Mat Min Robot Analysis Total . | . . . . . Derelict Logs Recovered 3 | . . 2 . 1 Drone Launches . | . . . . . Drone Recoveries . | . . . . . Exploration | -11 -10 -10 -9 -9 ------------- Run | Yrd Mat Min Mat Min Turns Passed 1853 | 60 472 656 389 276 Spaces Moved 969 | 34 225 364 135 211 Core 10 | 6 . . 4 . Treads 672 | 28 225 364 55 . Legs 6 | . . . 6 . Wheels 281 | . . . 70 211 Hover . | . . . . . Flight . | . . . . . Fastest Speed 50 | 50 160 160 80 80 Average Speed 136 | 140 160 160 123 80 Slowest Speed 250 | 160 160 160 250 95 Overloaded Moves . | . . . . . Propulsion Burnouts . | . . . . . Robots Hopped . | . . . . . Cave-ins Triggered . | . . . . . Exploration Rate (%) 35 | 5 29 80 14 49 Regions Visited 4 Branch Regions 2 Pre-discovered Areas 2 | . . 1 . 1 Known Exits Taken 2 | . . 1 1 . Unknown Exits Taken 2 | 1 1 . . . Scrap Searched 2 | . . 2 . . Spaces Dug 7 | . . . 7 . Terrain Destroyed 160 | . 1 87 72 . Melee . | . . . . . Projectile . | . . . . . AOE 160 | . 1 87 72 . Terrain Rammed . | . . . . . Walls Destroyed . | . . . . . Machines Disabled . | . . . . . Actions | -11 -10 -10 -9 -9 --------- Run | Yrd Mat Min Mat Min Total 1239 | 46 279 405 242 267 Wait 17 | . . 10 7 . Move 965 | 33 224 363 134 211 Hop . | . . . . . Pick Up 34 | 7 6 4 11 6 Fast Attach 2 | . . . 2 . Attach 26 | 6 1 3 10 6 Detach . | . . . . . Swap 5 | . . 1 3 1 Drop 1 | . . . 1 . Fire 102 | . 48 22 14 18 Melee 47 | . . . 24 23 Ram 2 | . . . . 2 Kick . | . . . . . Crush 2 | . . 2 . . Escape Stasis . | . . . . . Rewire . | . . . . . Trap . | . . . . . Miscellaneous 36 | . . . 36 . Route ------- -11/Scrapyard -10/Materials -10/Mines (discovered 2 exits: *Mat x2) -9/Materials -9/Mines (discovered 3 exits: [*Mat x2] / *Zio) History --------- Turn | Location | Event 4 | -11/Scrapyard | Discovered new exit (range 16) 61 | -11/Scrapyard | Entered Materials 250 | -10/Materials | Discovered new exit (range 15) 309 | -10/Materials | Build established: Mutant 426 | -10/Materials | Core integrity fell below 50% 533 | -10/Materials | Entered Mines 540 | -10/Mines | Received a Rocket Launcher from a helpful Derelict 615 | -10/Mines | Discovered new exit (range 12) 1042 | -10/Mines | Identified exit to Materials 1060 | -10/Mines | A weapon hastily lodged in a ceiling crevice suddenly fell to the ground 1087 | -10/Mines | Learned location of Zion (-7) 1189 | -10/Mines | Entered Materials 1189 | -9/Materials | Evolved 2 slots: Propulsion x1, Utility x1 1510 | -9/Materials | Core integrity fell below 50% 1547 | -9/Materials | Lost 5 parts (1p3n1w) 1574 | -9/Materials | Discovered new exit (range 6) 1577 | -9/Materials | Identified exit to Mines 1578 | -9/Materials | Entered Mines 1581 | -9/Mines | Discovered new exit (range 6) 1617 | -9/Mines | A Derelict revealed a hidden shortcut to a safe place 1620 | -9/Mines | Identified exit to Zion 1697 | -9/Mines | Lost 5 parts (1p2n2w) 1722 | -9/Mines | Discovered new exit (range 5) 1808 | -9/Mines | Learned location of Storage (-8) 1817 | -9/Mines | Assembled infested the area 1848 | -9/Mines | Core integrity fell below 20% 1854 | -9/Mines | Destroyed by as-24432 with Assembled Blade Last Messages --------------- Acquired Lgt. Ion Engine. T-07 Excavator destroyed. Acquired 22 matter. Acquired Wheel. EXIT=FOUND Broken Wheel destroyed. S-10 Pest destroyed. Switching to secondary target: S-10 Pest. S-10 Pest destroyed. Acquired 29 matter. Acquired Lgt. Assault Rifle. Acquired 8 matter. Acquired Lgt. Ion Engine. K-01 Serf collects debris. Acquired derelict log, extracted data. World map updated: -8/Storage. ALERT: Infestation in the mines, dispatching Demolisher response squad. Lgt. Ion Engine destroyed. as-93880 destroyed. Map ----- +----------------------------------------------------+ | ????????????????# #?????????????? | | ?????????" ### ##### #???????? | | ????? ????????# #???????? | | ???????????????????# #######???????? | | ?????????????????### ######????????? | | ?????????????????# #????????? | | ?????????????????# #??####??? | | ?????????????????# #### #### ##?? | | ?????????????????# ??## #?? | | ?????????????????# ??# #?? | | ?????????????????# ??## ##?? | | ?????????????????# ???## # ###??? | | ????????????????? ????# ####????? | | ????????????????? ????# #???????? | | ?????????????????###???## #???????? | | ??????????????????????## #???????? | | ??????????????????????# ###?????? | | ??????????????????????# ##????? | | ??????????????????????# #????? | | ??????????????????????## #????? | | ???????????????????????##a ##????? | | ???????????????##???????#a #?????? | | ??????????????## ??????#aa ##????? | | ??????????????# ?????#a ##???? | | ?????????????## #???##a"""a ##??? | | ???????? ##### #### @"""a #??? | | ???? """ #??? | | ???? ##??? | | ??? ????##### ######???? | | ?? ????????### ##????????? | | #?## ??????????## ######????? | | ?## ##?????????# #????? | | ?? ##????????# #????? | | ?? ?????????## ### #????? | | #??# ??????????######?# #????? | | #??? #?????????????????# #????? | | #??? #?????????????????# #????? | | #???# #?????????????????# #????? | | #??## #???#####?????????# #????? | | #?## #??## ####??????# #????? | | ### #### ##????## #????? | | ## ## ###### #????? | | #### ## #????? | | #### #### #????? | | ## ###??## ##????? | | #######?????# ##?????? | | ##???????????# ##??????? | | #????????????# ####???????? | | #???????????# ##??????????? | | # ##?????????? #???????????? | +----------------------------------------------------+ Best States ------------- Heat Dissipation 28 Energy Generation 10 Energy Capacity 250 Matter Stores 300 Matter Capacity 300 Sight Range 16 Robot Scan Range 14 Terrain Scan Range 16 Terrain Scan Density 10 Armor Coverage 150 Evasion (%) 44 Recoil Reduction 2 Offensive Hacking 10 Item Schematics ----------------- None Robot Schematics ------------------ None Fabricated ------------ Nothing Alien Tech Used ----------------- None Achievements -------------- Fist Fight Challenges ------------ None Game ------ Seed ClaymoresWeaponSheargun Manual? 0 Play Time 00:21:00 Cumulative 20.4 hours Start 2024.04.06 @ 05:22:06 End 2024.04.06 @ 05:54:21 Sessions 1 Manual Loads 0 Difficulty Rogue Special Mode None Game No. 22 Rogue 13 Adventurer 9 Explorer 0 Win Type - Total 0 Types 0/0/0/0/0/0/0/0/0 Lore% 19 Gallery% 32 Achievement% 26 Wizard Run 0 Options --------- Layout 1 ASCII 0 Keyboard 0 Movement Mouse Keybinds 0 Fullscreen 1 Font 24/Smallcaps Map View 50x35 Zoom Use 0% Tactical HUD 0 Map Filters NONE Filters NONE Steam 1 RUN: f843801c-94bc-41dc-87cf-559dbac7d17f